bitfinex/quotes_ETHUSD_20220212
["timestamp","ask_amount","ask_price","bid_price","bid_amount"]
[1644625885721,0.1715,2916.0,2915.4,0.85787]
[1644625886574,1.0294133,2916.0,2915.3,0.00332902]
[1644625886973,0.00786547,2915.8,2915.3,0.00332902]
[1644625887175,0.00786547,2915.8,2915.1,1.49632902]
[1644625887575,0.00786547,2915.8,2915.2,0.85786]
[1644625887775,0.00786547,2915.8,2915.2,0.86118902]
[1644625887975,0.1713,2916.2,2915.3,0.85788]
[1644625888174,0.00786562,2915.6,2915.3,0.86120902]
[1644625888374,0.00786562,2915.6,2915.3,0.85788]
[1644625888779,0.00786562,2915.6,2915.4,2.60549947]
[1644625888977,0.00786562,2915.6,2915.5,0.493]
[1644625889177,0.0053946,2916.3,2915.6,3.5]
[1644625889377,0.0053946,2916.3,2915.7,1.493]
[1644625889775,0.0053946,2916.3,2916.0,0.85391186]
[1644625889976,0.0053946,2916.3,2916.0,0.50448486]
[1644625890227,0.0053946,2916.3,2916.0,1.36217486]
[1644625890626,0.0053946,2916.3,2916.0,2.36217486]
[1644625890825,0.0053946,2916.3,2916.0,1.36217486]
[1644625891025,0.0053946,2916.3,2916.0,2.36217486]
[1644625891630,0.0053946,2916.3,2916.0,1.36217486]
[1644625891828,0.0053946,2916.3,2916.0,2.36217486]
[1644625892829,0.0053946,2916.3,2916.0,1.36217486]
[1644625893030,0.01361212,2916.3,2916.0,2.36217486]
[1644625893430,0.01361212,2916.3,2916.0,1.36217486]
[1644625893629,0.01361212,2916.3,2916.0,2.36217486]
[1644625893873,0.0053946,2916.3,2916.0,2.36217486]
[1644625894273,0.01361212,2916.3,2916.0,1.36217486]
[1644625894471,0.01361212,2916.3,2916.0,2.36217486]
[1644625894672,0.01361212,2916.3,2916.0,1.36217486]
[1644625894871,0.01361212,2916.3,2916.0,2.36217486]
[1644625895072,0.0053946,2916.3,2916.0,1.36217486]
[1644625895273,0.0053946,2916.3,2916.0,2.36217486]
[1644625895471,0.01341198,2916.3,2916.0,1.36217486]
[1644625895672,0.01341198,2916.3,2916.0,2.36217486]
[1644625895972,0.01341198,2916.3,2916.0,1.36217486]
[1644625896272,0.0053946,2916.3,2916.2,0.02462977]
[1644625896679,0.01341198,2916.3,2916.2,0.02462977]
[1644625897476,0.0053946,2916.3,2916.2,0.02462977]
[1644625897925,0.0053946,2916.3,2916.2,0.51762977]
[1644625900822,0.0053946,2916.3,2916.2,0.50593022]
[1644625908327,0.0053946,2916.3,2916.2,1.10593022]
[1644625908627,0.0053946,2916.3,2916.2,1.26858248]
[1644625909085,9.46e-05,2916.3,2916.2,5.09344023]
[1644625909291,0.1713,2917.7,2916.3,3.5]
[1644625909490,1.2367,2918.6,2916.5,8.4287388]
[1644625909491,0.1713,2917.8,2916.5,8.4287388]
[1644625909687,0.001,2918.4,2916.7,0.3]
[1644625909887,0.001,2918.4,2916.8,0.493]
[1644625909888,0.1713,2918.3,2916.8,0.493]
[1644625910386,0.4713,2918.4,2917.8,1.11165581]
[1644625910587,0.1713,2918.4,2917.9,0.73147719]
[1644625911093,0.1723,2918.6,2917.9,0.73147719]
[1644625911691,0.1713,2918.6,2917.9,0.73147719]
[1644625911891,0.1713,2918.6,2917.8,1.96881581]
[1644625911892,1.0284374,2918.6,2917.8,1.11165581]
[1644625912093,0.001,2918.5,2917.8,1.11165581]
[1644625912292,0.17748783,2918.4,2917.8,1.11165581]
[1644625912933,0.17748783,2918.4,2917.8,2.82605581]
[1644625913128,0.1713,2918.4,2917.8,1.96888581]
[1644625913328,0.00847755,2918.2,2917.8,1.96888581]
[1644625914429,0.1713,2918.5,2917.9,0.85714]
[1644625914633,0.00847763,2918.1,2918.0,0.85715]
[1644625915529,0.1723,2918.7,2918.0,0.85715]
[1644625915530,0.16468305,2918.7,2918.1,0.85708]
[1644625915731,0.00847759,2918.2,2918.1,1.71516]
[1644625915929,0.00847759,2918.2,2918.1,1.72852312]
[1644625916130,0.00847759,2918.2,2918.1,0.87144312]
[1644625916369,0.00847759,2918.2,2918.1,0.87044312]
[1644625916774,0.16468305,2918.7,2918.1,0.87044312]
[1644625916974,0.1713,2918.5,2918.1,1.72751312]
[1644625917178,0.1713,2918.6,2918.2,0.001]
[1644625917374,0.1713,2918.6,2918.2,1.71511]
[1644625917575,0.1713,2918.6,2918.3,1.13586431]
[1644625917775,0.00618084,2918.7,2918.4,0.001]
[1644625917975,0.1713,2919.0,2918.4,0.85799]
[1644625918175,0.00847684,2918.7,2918.4,0.85799]
[1644625919077,0.1713,2919.2,2918.5,0.85695]
[1644625919278,0.15,2919.4,2918.6,1.15684]
[1644625919476,0.15,2919.4,2918.7,1.35082]
[1644625919679,0.15,2919.4,2918.8,0.001]
[1644625919975,0.15,2919.4,2918.7,0.493]
[1644625919976,0.15,2919.4,2918.9,0.493]
[1644625920222,0.03389972,2919.5,2919.2,0.95355832]
[1644625920426,0.85677,2920.2,2919.2,0.95355832]
[1644625920623,0.1711,2920.1,2919.2,0.84865447]
[1644625921024,0.1711,2920.1,2919.2,1.70538447]
[1644625921223,0.1711,2920.1,2919.3,0.001]
[1644625921430,0.4711,2920.1,2919.3,0.001]
[1644625922029,1.32791,2920.1,2919.3,0.001]
[1644625922330,1.32791,2920.1,2919.2,0.84865447]
[1644625923030,0.4711,2920.1,2919.2,2.56211447]
[1644625923227,0.4711,2920.1,2919.3,0.001]
[1644625923631,0.4711,2920.1,2919.2,0.84965447]
[1644625923875,0.4711,2920.1,2919.5,0.8567]
[1644625924279,0.00846986,2919.8,2919.5,0.8567]
[1644625924478,0.1711,2919.7,2919.5,0.8567]
[1644625924777,0.00846986,2919.8,2919.5,0.8567]
[1644625925178,0.1711,2920.1,2919.5,0.8567]
[1644625925378,10.1761,2920.3,2919.5,0.8567]
[1644625925379,0.00846986,2919.8,2919.5,0.8567]
[1644625925978,0.00846986,2919.8,2919.5,0.88333642]
[1644625926483,0.1711,2919.7,2919.5,0.88333642]
[1644625926682,0.00846986,2919.8,2919.5,0.02663642]
[1644625928137,2.05,2919.7,2919.4,0.58437642]
[1644625928336,2.05,2919.7,2919.4,0.43437642]
[1644625928941,2.05,2919.7,2919.4,0.43337642]
[1644625929142,2.05846994,2919.7,2919.4,0.43437642]
[1644625929542,2.05846994,2919.7,2919.4,0.43337642]
[1644625929945,2.05,2919.7,2919.4,0.43337642]
[1644625930345,2.05846994,2919.7,2919.4,0.43337642]
[1644625930947,0.00846994,2919.7,2919.4,0.43337642]
[1644625931148,0.1711,2920.0,2919.6,0.01264281]
[1644625931372,0.00846994,2919.7,2919.6,0.01264281]
[1644625931975,0.00846994,2919.7,2919.6,0.01364281]
[1644625932375,0.1711,2920.0,2919.6,0.01364281]
[1644625932576,0.00846986,2919.8,2919.6,0.01364281]
[1644625932878,0.00846986,2919.8,2919.6,0.86925281]
[1644625933579,7.0496,2920.3,2919.6,0.87025281]
[1644625933777,0.00846982,2919.8,2919.6,0.86925281]
[1644625934076,0.00846982,2919.8,2919.6,1.72588281]
[1644625934276,0.00846982,2919.8,2919.7,0.001]
[1644625934878,3.2628,2920.7,2919.8,0.8566]
[1644625935156,0.03387403,2920.3,2919.8,0.8576]
[1644625935355,0.03387403,2920.3,2919.9,2.943]
[1644625935559,0.03387403,2920.3,2920.0,5.01990878]
[1644625935754,0.03387403,2920.3,2920.1,0.493]
[1644625935955,3.2511,2921.0,2920.2,0.85627]
[1644625936155,3.2511,2921.0,2920.6,1.01404291]
[1644625936354,3.2511,2921.0,2920.6,0.91263862]
[1644625936558,0.1711,2921.6,2920.6,0.91263862]
[1644625936759,0.4711,2921.6,2920.6,0.91263862]
[1644625936957,0.4711,2921.6,2920.6,3.11831862]
[1644625936958,0.1711,2921.6,2920.6,3.11831862]
[1644625937358,0.1711,2921.6,2920.7,1.0]
[1644625937559,0.1711,2921.7,2920.8,0.493]
[1644625937759,0.1711,2921.7,2920.8,1.093]
[1644625937960,0.1211,2921.7,2920.8,1.093]
[1644625938263,0.1211,2921.7,2921.5,1.16087797]
[1644625938459,0.1711,2921.9,2921.5,1.16087797]
[1644625938875,0.1711,2922.4,2921.5,1.16087797]
[1644625939077,1.1711,2922.6,2921.5,1.16087797]
[1644625939277,0.8560323,2922.5,2921.5,2.87307797]
[1644625939476,0.1711,2922.4,2921.5,2.01699797]
[1644625939878,19.729,2922.7,2922.0,1.01268166]
[1644625939879,0.00845976,2922.1,2922.0,1.01268166]
[1644625940076,0.00845976,2922.1,2921.5,0.85612]
[1644625940077,0.4580679,2921.9,2921.5,0.85612]
[1644625940679,0.4580679,2921.9,2921.4,1.0]
[1644625940881,0.4580679,2921.9,2921.4,0.85615]
[1644625941079,0.00780888,2921.8,2921.4,0.85615]
[1644625942184,0.4580679,2921.9,2921.4,0.85615]
[1644625942384,0.00780896,2921.7,2921.4,1.71227]
[1644625942621,0.00780896,2921.7,2921.4,1.85615]
[1644625942823,0.00780896,2921.7,2921.4,0.85615]
[1644625943221,0.4580679,2921.9,2921.4,0.85615]
[1644625943524,0.007809,2921.7,2921.4,0.85615]
[1644625944323,0.4580679,2921.9,2921.5,1.71214]
[1644625944521,0.4580679,2921.9,2921.5,3.42422]
[1644625944722,0.4580679,2921.9,2921.5,1.71208]
[1644625944723,0.007809,2921.7,2921.5,1.71208]
[1644625945522,0.4580679,2921.9,2921.5,1.71208]
[1644625945924,0.4580679,2921.9,2921.6,0.01901706]
[1644625945925,0.00785266,2921.7,2921.6,0.01901706]
[1644625946129,0.00785266,2921.7,2921.2,0.00010706]
[1644625946130,3.5,2921.6,2921.2,0.00010706]
[1644625946386,0.00069294,2920.9,2920.2,3.5]
[1644625946583,0.00069294,2920.9,2920.1,0.001]
[1644625946782,0.00069294,2920.9,2920.2,1.71284]
[1644625946982,0.00069294,2920.9,2920.3,0.85748]
[1644625947182,0.00069294,2920.9,2920.5,0.85394468]
[1644625947183,0.0078535,2920.7,2920.5,0.85394468]
[1644625947383,0.0078535,2920.7,2920.5,1.71030468]
[1644625947583,0.0078535,2920.7,2920.6,0.001]
[1644625947983,0.00069294,2920.9,2920.6,0.001]
[1644625948382,0.00785342,2920.8,2920.6,0.001]
[1644625948786,0.00785342,2920.8,2920.5,0.001]
[1644625948984,0.00785342,2920.8,2920.0,0.01990878]
[1644625948985,0.1711,2920.7,2920.0,0.02090878]
[1644625949183,0.1711,2920.7,2920.0,0.87643878]
[1644625949383,0.1711,2920.7,2919.9,0.001]
[1644625949384,0.8565555,2920.7,2919.9,0.001]
[1644625949583,3.98441877,2920.6,2919.9,0.001]
[1644625949782,3.98441877,2920.6,2919.7,0.001]
[1644625949783,4.58441877,2920.6,2919.7,0.001]
[1644625949982,4.58441877,2920.6,2919.7,0.85758]
[1644625950635,0.00785094,2920.3,2919.8,0.16265226]
[1644625950835,0.00785094,2920.3,2919.8,0.16365226]
[1644625951034,0.00785094,2920.3,2919.8,0.001]
[1644625951237,0.00785094,2920.3,2919.8,0.8576]
[1644625951640,0.1711,2920.7,2920.2,1.0975444]
[1644625951840,0.00069294,2920.9,2920.3,0.001]
[1644625951841,0.20249783,2920.8,2920.3,0.001]
[1644625952240,0.20249783,2920.8,2920.3,0.85746]
[1644625952839,0.1711,2920.8,2920.3,0.85746]
[1644625953039,0.00785084,2920.7,2920.3,0.85746]
[1644625954081,0.00069294,2920.9,2920.3,1.71385]
[1644625954278,0.00785088,2920.6,2920.4,0.85743]
[1644625954477,0.00785088,2920.6,2920.4,0.001]
[1644625954678,0.00785088,2920.6,2920.3,0.001]
[1644625955279,0.8565195,2920.8,2920.1,0.001]
[1644625955479,0.8565195,2920.8,2919.9,0.85654]
[1644625955480,0.00785092,2920.6,2920.0,0.85651]
[1644625955679,0.00785092,2920.6,2920.0,1.71405]
[1644625955879,0.00785092,2920.6,2920.4,0.02664056]
[1644625956485,0.00069294,2920.9,2920.4,0.02664056]
[1644625956687,0.00785915,2920.6,2920.4,0.02664056]
[1644625957626,0.00069294,2920.9,2920.4,0.02664056]
[1644625957829,0.00785915,2920.6,2920.4,0.02664056]
[1644625958827,0.00069294,2920.9,2920.4,0.02664056]
[1644625959128,0.00785915,2920.6,2920.5,0.95971819]
[1644625959332,0.00785915,2920.6,2920.5,0.96071819]
[1644625959930,0.00069294,2920.9,2920.5,0.96071819]
[1644625960328,0.00069294,2920.9,2920.5,1.81710819]
[1644625960329,0.00785025,2920.7,2920.5,1.81710819]
[1644625960530,0.00785025,2920.7,2920.6,0.001]
[1644625961375,0.00069294,2920.9,2920.5,0.03546605]
[1644625961579,0.00785018,2920.8,2920.5,0.03546605]
[1644625962378,0.00069294,2920.9,2920.5,0.03546605]
[1644625962779,0.00785018,2920.8,2920.5,0.03546605]
[1644625963579,0.00069294,2920.9,2920.5,0.03546605]
[1644625963781,0.00552426,2920.8,2920.5,0.89188605]
[1644625964080,0.00552426,2920.8,2920.5,0.89288605]
[1644625964383,0.00552426,2920.8,2920.5,0.89188605]
[1644625964782,0.00069294,2920.9,2920.6,0.3]
[1644625964980,0.00069294,2920.9,2920.7,2.56858]
[1644625965228,0.00069294,2920.9,2920.8,1.13057648]
[1644625965428,0.00069294,2920.9,2920.8,2.13057648]
[1644625966436,0.00069294,2920.9,2920.8,2.43057648]
[1644625967036,0.00069294,2920.9,2920.8,2.92357648]
[1644625967735,0.00069294,2920.9,2920.8,3.22357648]
[1644625968334,0.00069294,2920.9,2920.8,2.92357648]
[1644625969581,0.00069294,2920.9,2920.8,1.62357648]
[1644625969780,0.00069294,2920.9,2920.8,2.62357648]
[1644625970279,0.00069294,2920.9,2920.8,1.62357648]
[1644625970684,0.00069294,2920.9,2920.8,1.62262332]
[1644625971081,0.00069294,2920.9,2920.8,1.6579253]
[1644625971279,0.00069294,2920.9,2920.8,2.6579253]
[1644625975731,0.00069294,2920.9,2920.8,2.65787846]
[1644625980130,0.00069294,2920.9,2920.8,4.37004846]
[1644625981130,0.00069294,2920.9,2920.8,4.67004846]
[1644625981333,0.00069294,2920.9,2920.8,4.97004846]
[1644625982334,0.00069294,2920.9,2920.8,8.47004846]
[1644625983739,0.00069294,2920.9,2920.8,4.97004846]
[1644625985888,0.03141887,2921.4,2920.9,3.5]
[1644625986089,0.03141887,2921.4,2921.1,1.71168]
[1644625986289,0.03141887,2921.4,2921.2,0.493]
[1644625986489,0.4580679,2921.9,2921.3,0.93652425]
[1644625986789,0.4580679,2921.9,2921.4,0.493]
[1644625987288,0.4580679,2921.9,2921.5,1.7117701]
[1644625987489,0.4580679,2921.9,2921.7,0.85587]
[1644625987728,0.4580679,2921.9,2921.7,1.34887]
[1644625987929,0.4580679,2921.9,2921.8,0.98885087]
[1644625989736,0.4580679,2921.9,2921.7,0.493]
[1644625989932,0.4580679,2921.9,2921.5,1.71208]
[1644625990132,0.4580679,2921.9,2921.6,0.85604]
[1644625990332,0.46653318,2921.9,2921.6,0.85604]
[1644625990935,0.46653318,2921.9,2921.6,1.71213]
[1644625991132,0.46653318,2921.9,2921.7,0.856]
[1644625991383,0.4580679,2921.9,2921.7,0.856]
[1644625991578,0.46653322,2921.9,2921.7,0.856]
[1644625992279,0.46653322,2921.9,2921.7,1.7119497]
[1644625992479,0.4580679,2921.9,2921.7,1.7119497]
[1644625992678,0.46653318,2921.9,2921.7,1.7119497]
[1644625993681,0.4580679,2921.9,2921.7,1.7119497]
[1644625993880,0.46653318,2921.9,2921.7,1.7119497]
[1644625994280,0.46653318,2921.9,2921.7,2.7119497]
[1644625994680,0.46653318,2921.9,2921.8,1.71172]
[1644625994881,0.4580679,2921.9,2921.8,2.71172]
[1644625995130,0.4580679,2921.9,2921.8,3.20472]
[1644625995331,0.46653318,2921.9,2921.8,3.20472]
[1644625995934,0.46653318,2921.9,2921.8,3.23968958]
[1644625996139,0.4580679,2921.9,2921.8,3.23968958]
[1644625998742,2.5008429,2921.9,2921.8,3.23968958]
[1644625998981,2.5018429,2921.9,2921.8,3.23968958]
[1644625999581,2.5018429,2921.9,2921.8,2.23968958]
[1644625999782,2.5018429,2921.9,2921.8,0.52796958]
[1644625999982,2.5018429,2921.9,2921.8,0.30400063]
[1644626000483,2.5018429,2921.9,2921.8,6.958e-05]
[1644626000682,2.9729429,2921.9,2921.8,6.958e-05]
[1644626001183,1.7123406,2921.8,2921.0,0.85618]
[1644626001384,0.001,2921.7,2921.2,1.7122]
[1644626001586,0.1711,2921.6,2921.2,1.7122]
[1644626002384,0.0084656,2921.5,2921.2,1.7122]
[1644626002629,0.1711,2921.4,2921.3,0.8562]
[1644626002830,0.0084656,2921.5,2921.3,2.1562]
[1644626003432,0.001,2921.8,2921.3,2.1562]
[1644626003638,0.0084656,2921.5,2921.3,2.1562]
[1644626003835,0.0084656,2921.5,2921.4,0.85603]
[1644626004438,0.0084656,2921.5,2921.4,1.71205]
[1644626004634,0.001,2921.8,2921.4,2.56804]
[1644626004835,0.00820203,2921.6,2921.5,0.85598]
[1644626005236,0.00820203,2921.6,2921.5,1.85598]
[1644626005637,0.00820203,2921.6,2921.5,1.0]
[1644626005838,0.001,2921.8,2921.5,2.71208]
[1644626006043,0.00820196,2921.7,2921.5,2.71208]
[1644626007089,0.001,2921.8,2921.5,2.71208]
[1644626007290,0.00820193,2921.7,2921.5,2.71208]
[1644626007790,0.00820193,2921.7,2921.5,3.5681]
[1644626008289,0.001,2921.8,2921.6,1.71198]
[1644626008489,0.00799876,2921.7,2921.6,0.85598]
[1644626008689,0.00799876,2921.7,2921.6,1.0]
[1644626008889,0.00799876,2921.7,2921.5,1.85604]
[1644626009490,0.001,2921.8,2921.5,1.85604]
[1644626009690,0.00799876,2921.7,2921.5,1.85604]
[1644626010632,0.001,2921.8,2921.5,1.85604]
[1644626010831,0.00799876,2921.7,2921.5,1.85604]
[1644626011439,0.00799876,2921.7,2921.6,0.85601]
[1644626011839,0.001,2921.8,2921.6,1.85601]
[1644626012037,0.00904338,2921.8,2921.6,1.85601]
[1644626013039,0.001,2921.8,2921.6,2.71203]
[1644626013241,0.00904335,2921.8,2921.6,2.71203]
[1644626014279,0.001,2921.8,2921.6,2.71203]
[1644626014482,0.00904335,2921.8,2921.6,2.71203]
[1644626015480,0.001,2921.8,2921.6,2.71203]
[1644626015679,0.0090333,2921.8,2921.6,2.71203]
[1644626016681,0.001,2921.8,2921.6,2.71203]
[1644626016983,0.0090333,2921.8,2921.6,2.71203]
[1644626017840,0.001,2921.8,2921.6,1.85602]
[1644626018039,0.0090333,2921.8,2921.6,1.85602]
[1644626018841,0.0090333,2921.8,2921.6,0.85602]
[1644626019042,0.001,2921.8,2921.6,0.85602]
[1644626019242,0.00903556,2921.8,2921.6,0.85602]
[1644626020243,0.001,2921.8,2921.6,0.85602]
[1644626020443,0.00903556,2921.8,2921.6,0.85602]
[1644626021489,0.001,2921.8,2921.6,0.85602]
[1644626021690,0.001,2921.8,2921.5,0.493]
[1644626021888,0.04929999,2921.4,2921.3,1.88336]
[1644626022487,0.04929999,2921.4,2921.3,1.71226]
[1644626023689,0.04929999,2921.4,2921.3,1.71093055]
[1644626024793,0.04929999,2921.4,2921.3,3.56706055]
[1644626025230,0.04929999,2921.4,2921.3,1.71093055]
[1644626025833,0.04929999,2921.4,2921.3,2.56702055]
[1644626026237,0.04929999,2921.4,2921.3,1.71093055]
[1644626026435,0.04929999,2921.4,2921.3,2.71093055]
[1644626026635,0.04929999,2921.4,2921.3,1.71093055]
[1644626026835,0.04929999,2921.4,2921.3,2.56707055]
[1644626028037,0.04929999,2921.4,2921.3,3.56707055]
[1644626028237,0.04929999,2921.4,2921.3,2.56707055]
[1644626028440,0.04929999,2921.4,2921.3,3.56707055]
[1644626031286,0.04929999,2921.4,2921.3,3.86707055]
[1644626031686,0.00744157,2921.5,2921.3,3.56707055]
[1644626031886,0.00744157,2921.5,2921.4,7.32734479]
[1644626032088,0.00744157,2921.5,2921.4,3.50501]
[1644626032288,0.4580679,2921.9,2921.6,0.8559]
[1644626032930,0.4580679,2921.9,2921.6,1.7118]
[1644626033133,0.4580679,2921.9,2921.6,0.8559]
[1644626033330,0.4580679,2921.9,2921.7,0.8559306]
[1644626033536,0.4580679,2921.9,2921.8,1.02819051]
[1644626033737,0.46550921,2921.9,2921.8,1.02819051]
[1644626034335,0.46550921,2921.9,2921.7,1.85594]
[1644626034536,0.4580679,2921.9,2921.7,1.85594]
[1644626034738,0.4580679,2921.9,2921.6,0.85595]
[1644626034937,0.4580679,2921.9,2921.6,2.71199]
[1644626035240,0.4080679,2921.9,2921.6,1.85595]
[1644626035436,0.4080679,2921.9,2921.6,0.85595]
[1644626035637,0.4080679,2921.9,2921.6,1.85595]
[1644626036036,0.41551193,2921.9,2921.6,1.85595]
[1644626036792,0.186825,2921.6,2921.5,2.56778]
[1644626036992,0.186825,2921.6,2921.5,4.90709223]
[1644626038393,0.186825,2921.6,2921.5,5.90709223]
[1644626039295,0.186825,2921.6,2921.5,3.33931223]
[1644626041343,0.186825,2921.6,2921.5,2.33931223]
[1644626041546,0.186825,2921.6,2921.5,3.33931223]
[1644626042744,0.186825,2921.6,2921.5,2.33931223]
[1644626042948,0.186825,2921.6,2921.5,3.33931223]
[1644626043644,0.186825,2921.6,2921.5,2.33931223]
[1644626043882,0.186825,2921.6,2921.5,3.33931223]
[1644626044688,0.186825,2921.6,2921.5,2.33931223]
[1644626046391,0.186825,2921.6,2921.5,1.34892]
[1644626048838,0.186825,2921.6,2921.5,0.84892]
[1644626053297,0.186825,2921.6,2921.5,1.84892]
[1644626056049,0.186825,2921.6,2921.5,0.493]
[1644626056652,0.187825,2921.6,2921.5,0.493]
[1644626057050,0.186825,2921.6,2921.5,0.493]
[1644626058253,0.186825,2921.6,2921.5,1.34909]
[1644626058652,0.20093933,2922.1,2921.5,1.34909]
[1644626058653,0.1711,2922.1,2921.5,2.20517]
[1644626058891,0.00746088,2921.7,2921.5,2.20517]
[1644626059894,0.001,2922.0,2921.5,2.20517]
[1644626060094,0.0074608,2921.7,2921.6,0.85606]
[1644626061100,0.85704,2922.4,2921.7,0.85604]
[1644626061297,0.00746077,2921.8,2921.7,0.85604]
[1644626061499,0.00746077,2921.8,2921.6,2.56814]
[1644626061699,0.00746077,2921.8,2921.6,1.71208]
[1644626062198,0.1711,2922.1,2921.6,1.71208]
[1644626062642,0.00746075,2921.8,2921.6,1.71208]
[1644626063536,0.1711,2922.1,2921.6,1.71208]
[1644626063739,0.00746075,2921.8,2921.6,1.71208]
[1644626063936,0.00746075,2921.8,2921.7,0.85604]
[1644626064640,0.1721,2922.5,2921.7,0.85604]
[1644626064838,0.02983839,2922.3,2922.0,1.03124518]
[1644626065036,0.02983839,2922.3,2922.1,0.85592]
[1644626065737,0.02983839,2922.3,2922.2,0.493]
[1644626065936,0.1721,2922.5,2922.2,0.493]
[1644626065937,0.001,2922.5,2922.2,0.493]
[1644626066136,0.00746042,2922.3,2922.2,0.493]
[1644626066592,0.00746042,2922.3,2922.2,2.2044139]
[1644626066788,0.00617111,2922.3,2922.2,3.9158339]
[1644626067189,0.001,2923.0,2922.6,0.93714175]
[1644626067590,0.8557728,2923.0,2922.6,0.93714175]
[1644626067890,0.8557728,2923.0,2922.6,1.79294175]
[1644626068689,0.8557728,2923.0,2922.6,0.8558]
[1644626069091,0.8567728,2923.0,2922.6,0.8558]
[1644626069493,0.8067728,2923.0,2922.6,0.8558]
[1644626070136,0.9777728,2923.0,2922.6,0.8558]
[1644626070539,1.8336328,2923.0,2922.5,0.85585]
[1644626070837,0.8568507,2922.9,2922.5,0.85585]
[1644626071035,0.86531518,2922.9,2922.5,0.85585]
[1644626071942,0.8568507,2922.9,2922.5,0.85585]
[1644626072141,0.00846456,2922.8,2922.5,0.85585]
[1644626072543,0.86433106,2922.8,2922.5,0.85585]
[1644626072746,1.74557317,2923.3,2922.5,0.85585]
[1644626072747,0.171,2924.0,2922.7,0.01273541]
[1644626072945,0.171,2924.0,2923.0,0.8556]
[1644626073244,5.1255,2924.1,2923.0,0.8556]
[1644626073245,0.171,2924.1,2923.1,0.493]
[1644626073443,1.8311201,2925.2,2923.1,0.82665226]
[1644626073444,0.171,2924.6,2923.1,0.82665226]
[1644626073644,0.04035806,2924.0,2923.2,4.45688889]
[1644626073888,0.04035806,2924.0,2923.3,1.664]
[1644626074093,0.0437686,2924.6,2924.4,0.98195762]
[1644626074490,0.04320018,2924.5,2924.4,0.98195762]
[1644626075891,0.04320018,2924.5,2924.3,0.85529]
[1644626076291,0.04263176,2924.4,2924.3,0.85529]
[1644626076495,0.04263176,2924.4,2924.2,0.85537]
[1644626076700,0.04320018,2924.4,2924.2,0.85537]
[1644626076896,0.04206333,2924.3,2924.2,0.85537]
[1644626080641,0.04206333,2924.3,2924.2,1.8960463]
[1644626082091,0.00784911,2924.4,2924.2,1.8960463]
[1644626082293,0.00784911,2924.4,2924.3,0.85519]
[1644626082491,0.00784911,2924.4,2924.3,1.34819]
[1644626082692,6.9997,2925.1,2924.3,2.34819]
[1644626082890,6.9997,2925.1,2925.0,0.93256357]
[1644626083091,0.1708,2925.4,2925.0,0.93256357]
[1644626083294,7.3308,2925.6,2925.0,0.93256357]
[1644626083494,0.1709,2925.5,2925.0,0.85512]
[1644626083691,11.8082534,2925.8,2925.0,0.85512]
[1644626083692,0.4708,2925.7,2925.0,0.85512]
[1644626086038,0.4708,2925.7,2925.0,1.71017]
[1644626086240,0.4708,2925.7,2925.0,1.71015]
[1644626086642,0.00844776,2925.5,2925.0,1.71015]
[1644626087242,0.00844776,2925.5,2925.1,0.85503]
[1644626087442,0.00844776,2925.5,2925.2,0.855]
[1644626087642,7.6308,2925.8,2925.3,0.85502]
[1644626087843,0.00844781,2925.4,2925.3,0.85502]
[1644626088042,0.00844781,2925.4,2925.3,0.76951801]
[1644626088443,0.00844781,2925.4,2924.8,1.71024]
[1644626088743,7.46,2925.8,2924.9,1.71018]
[1644626088986,0.0337868,2925.7,2925.4,0.00111727]
[1644626089387,0.3337868,2925.7,2925.4,0.00111727]
[1644626089691,0.0337868,2925.7,2925.4,0.00111727]
[1644626089887,0.855134,2925.7,2925.4,0.00111727]
[1644626090292,0.8635816,2925.7,2925.4,0.00111727]
[1644626090493,1.0343816,2925.7,2925.4,0.00111727]
[1644626090692,1.4635816,2925.7,2925.4,0.00111727]
[1644626090892,5.01744616,2925.7,2925.4,0.00111727]
[1644626091094,6.455134,2925.7,2925.4,0.00111727]
[1644626091293,0.855134,2925.7,2925.4,0.00111727]
[1644626091498,0.8635816,2925.7,2925.4,0.00111727]
[1644626091794,1.4635816,2925.7,2925.4,0.00111727]
[1644626091992,0.1708,2925.6,2925.4,0.00111727]
[1644626092392,1.0259456,2925.6,2925.4,0.00111727]
[1644626092647,3.5,2925.5,2924.8,0.85512]
[1644626092938,3.5,2925.5,2924.8,1.71025]
[1644626093541,3.5,2925.5,2925.0,0.85514]
[1644626093740,0.00844793,2925.3,2925.0,0.85514]
[1644626094844,3.5,2925.5,2925.0,0.85514]
[1644626095041,0.00844793,2925.3,2925.0,0.85514]
[1644626096042,4.2708,2925.5,2925.0,0.85514]
[1644626096242,0.00844793,2925.3,2925.0,0.85514]
[1644626097091,3.5,2925.5,2925.0,0.85514]
[1644626097495,0.00844793,2925.3,2925.0,0.85514]
[1644626098292,3.5,2925.5,2925.0,0.85514]
[1644626098492,3.5,2925.5,2925.0,0.76962601]
[1644626098693,0.00844793,2925.3,2925.0,0.76962601]
[1644626099494,3.5,2925.5,2925.0,0.76962601]
[1644626099694,0.1708,2925.6,2925.0,0.76962601]
[1644626099896,7.46,2925.8,2925.0,0.78953479]
[1644626099897,0.00844793,2925.3,2925.0,0.78953479]
[1644626100154,0.03378664,2925.7,2925.3,0.85466]
[1644626100346,0.03378664,2925.7,2925.4,0.1708]
[1644626100551,0.03378664,2925.7,2925.5,0.493]
[1644626100844,7.46,2926.4,2925.6,1.17793172]
[1644626101043,7.46,2926.4,2925.6,1.67093172]
[1644626101243,7.46,2926.4,2925.7,0.8548]
[1644626101450,7.46,2926.4,2925.8,0.85477]
[1644626102150,0.00606754,2926.2,2925.9,0.85475]
[1644626102349,0.00606754,2926.2,2926.0,1.70952]
[1644626103150,11.0054,2926.7,2926.0,2.20252]
[1644626103351,0.00606754,2926.2,2926.1,1.70949]
[1644626104387,3.2081,2926.7,2926.1,0.85474]
[1644626104589,0.00843893,2926.3,2926.2,0.85471]
[1644626105588,3.24185067,2926.7,2926.2,0.85471]
[1644626105589,3.2081,2926.7,2926.2,0.85471]
[1644626105789,0.00843885,2926.4,2926.3,0.85469]
[1644626105989,0.00843885,2926.4,2926.2,0.85471]
[1644626106794,0.1708,2926.6,2926.2,0.85471]
[1644626106994,0.00843881,2926.4,2926.2,0.85471]
[1644626107842,0.00843881,2926.4,2926.3,0.493]
[1644626108044,7.46,2927.4,2926.4,0.85452]